bitfinex-derivatives/quotes_ETHF0:USTF0_20210110
["timestamp","ask_amount","ask_price","bid_price","bid_amount"]
[1610300596886,16.70553471,1267.1,1267.0,10.0]
[1610300597088,46.70553471,1267.1,1267.0,10.0]
[1610300597289,46.70553471,1267.1,1266.9,2.039]
[1610300597687,4.00959,1267.0,1264.8,5.5353]
[1610300597886,30.0,1266.9,1264.8,5.5353]
[1610300598086,30.0,1266.9,1263.3,0.72772385]
[1610300598087,9.66375485,1265.8,1264.9,10.0]
[1610300598287,30.0,1265.7,1264.9,10.0]
[1610300598487,30.0,1265.7,1263.0,0.97043702]
[1610300598488,9.65150795,1265.5,1263.7,10.0]
[1610300598888,9.64278838,1265.4,1263.5,10.0]
[1610300599087,11.39522607,1265.6,1263.5,10.0]
[1610300599289,11.39522607,1265.6,1263.8,10.0]
[1610300599489,0.93026028,1266.0,1263.8,12.3212]
[1610300599690,4.00959,1265.8,1263.8,15.7262]
[1610300599890,4.00959,1265.8,1263.9,10.0]
[1610300600289,34.00959,1265.8,1264.0,10.0]
[1610300600690,4.00959,1265.8,1263.9,10.0]
[1610300600890,30.0,1265.7,1263.9,10.0]
[1610300601091,30.0,1265.7,1264.0,10.0]
[1610300601289,30.0,1265.7,1263.9,10.0]
[1610300601690,4.00959,1264.6,1264.1,4.00959]
[1610300602092,13.10047672,1266.0,1264.1,4.00959]
[1610300602293,13.08431168,1265.9,1264.2,10.0]
[1610300602691,13.08847037,1266.1,1264.3,10.0]
[1610300603090,13.08847037,1266.1,1264.1,5.88939]
[1610300603091,13.08847037,1266.1,1264.2,10.0]
[1610300603291,13.08847037,1266.1,1264.1,5.88939]
[1610300603292,30.0,1266.0,1264.4,10.0]
[1610300603493,13.08970104,1266.2,1264.1,5.88939]
[1610300603693,13.09775664,1266.4,1265.0,5.58799]
[1610300604292,30.0,1266.3,1265.1,10.0]
[1610300604692,13.08909209,1266.2,1265.2,10.0]
[1610300605092,13.08909209,1266.2,1265.3,10.0]
[1610300605392,43.08909209,1266.2,1265.3,1.602]
[1610300605592,4.00959,1265.4,1265.3,1.602]
[1610300606192,4.00959,1265.4,1265.3,11.602]
[1610300606792,34.00959,1265.4,1265.3,11.602]
[1610300606992,4.00959,1265.4,1265.3,11.602]
[1610300607595,4.00959,1265.4,1265.3,10.0]
[1610300607794,34.00959,1265.4,1265.3,9.602]
[1610300610498,4.00959,1265.4,1265.3,9.602]
[1610300610898,34.00959,1265.4,1265.3,9.602]
[1610300611098,34.00959,1265.4,1265.3,11.122]
[1610300613599,47.11603007,1265.4,1265.3,11.122]
[1610300614100,34.00959,1265.4,1265.3,11.122]
[1610300614400,47.12435366,1265.4,1265.3,11.122]
[1610300614700,36.12973499,1265.4,1265.3,11.122]
[1610300615501,36.12973499,1265.4,1265.3,9.602]
[1610300615700,36.12973499,1265.4,1265.3,8.4215]
[1610300616803,51.0003758,1265.4,1265.3,3.27645349]
[1610300617004,36.12973499,1265.4,1265.3,3.27645349]
[1610300618003,36.12973499,1265.4,1265.3,5.76315349]
[1610300618204,50.97385521,1265.4,1265.3,5.76315349]
[1610300618404,36.12973499,1265.4,1265.3,5.76315349]
[1610300618605,6.12973499,1265.4,1265.3,5.76315349]
[1610300619005,2.12014499,1265.4,1265.3,5.76315349]
[1610300619206,15.19596222,1265.4,1265.3,5.76315349]
[1610300619407,2.12014499,1265.4,1265.3,5.76315349]
[1610300619607,2.12014499,1265.4,1265.3,9.77274349]
[1610300619808,17.10685894,1266.0,1265.3,9.77274349]
[1610300620007,13.09726894,1266.0,1265.3,9.77274349]
[1610300620206,14.84298956,1266.3,1265.4,10.0]
[1610300620207,13.0846911,1266.1,1265.4,10.0]
[1610300620409,13.099293,1266.4,1265.4,10.0]
[1610300620607,13.099293,1266.4,1265.5,10.0]
[1610300620807,13.10091427,1266.5,1265.5,10.0]
[1610300621008,13.10091427,1266.5,1265.4,10.0]
[1610300621208,14.84712077,1266.7,1265.4,10.0]
[1610300621209,13.10906663,1266.7,1265.4,10.0]
[1610300621409,14.87796095,1267.4,1265.4,10.0]
[1610300621608,14.87796095,1267.4,1265.5,10.0]
[1610300621814,14.87796095,1267.4,1267.3,4.00959]
[1610300622010,14.87796095,1267.4,1267.3,6.48919]
[1610300622210,14.90932179,1267.8,1267.3,6.48919]
[1610300622409,14.91999051,1267.9,1267.3,16.48919]
[1610300622810,14.92362623,1268.0,1267.4,10.0]
[1610300623011,14.93385023,1268.1,1267.4,10.0]
[1610300623210,14.93385023,1268.1,1267.5,10.0]
[1610300623411,14.94414255,1268.2,1267.6,10.0]
[1610300623610,1.92815272,1267.9,1267.6,10.0]
[1610300623810,1.92815272,1267.9,1267.6,12.5017]
[1610300624010,1.92815272,1267.9,1267.6,2.5017]
[1610300624510,1.92815272,1267.9,1267.7,10.0]
[1610300624710,14.98066118,1268.6,1267.7,10.0]
[1610300624910,14.9897312,1268.9,1267.8,10.0]
[1610300625110,44.9897312,1268.9,1267.8,10.0]
[1610300625311,14.9966292,1269.0,1267.7,10.0]
[1610300625712,14.9966292,1269.0,1268.7,4.00959]
[1610300625911,14.9966292,1269.0,1268.4,1.9728]
[1610300626411,30.0,1268.9,1268.5,10.0]
[1610300626812,30.0,1268.9,1268.6,10.0]
[1610300627312,45.00833368,1268.9,1268.7,10.0]
[1610300627815,19.01266745,1268.8,1268.5,10.0]
[1610300628013,19.01266745,1268.8,1268.4,1.9728]
[1610300628014,30.0,1268.7,1268.4,1.9728]
[1610300628417,44.99000576,1268.7,1268.6,10.0]
[1610300628615,44.99000576,1268.7,1268.5,10.0]
[1610300628815,46.71231554,1268.7,1267.6,51.7725]
[1610300629017,48.27091554,1268.7,1268.6,10.0]
[1610300629418,31.5586,1268.7,1267.7,10.0]
[1610300629617,14.95721571,1268.6,1267.6,51.7725]
[1610300629819,14.95721571,1268.6,1268.5,4.00959]
[1610300630019,44.95721571,1268.6,1268.5,4.00959]
[1610300630219,44.95721571,1268.6,1268.5,14.00959]
[1610300630420,30.0,1268.6,1268.5,14.00959]
[1610300630622,30.0,1268.6,1268.5,10.0]
[1610300631222,44.95887443,1268.6,1268.5,10.0]
[1610300631822,48.96846443,1268.6,1268.5,10.0]
[1610300632022,34.00959,1268.6,1268.5,10.0]
[1610300632423,50.72320902,1268.6,1268.5,10.0]
[1610300632623,34.00959,1268.6,1268.5,10.0]
[1610300633422,35.86577317,1268.6,1268.5,10.0]
[1610300633825,35.86577317,1268.6,1268.5,3.8957]
[1610300634223,54.23954018,1268.6,1268.5,3.6482]
[1610300634625,35.86577317,1268.6,1267.0,53.3679]
[1610300635024,35.86577317,1268.6,1268.5,10.0]
[1610300635425,35.86577317,1268.6,1267.0,53.3679]
[1610300635625,17.4529526,1267.5,1267.2,10.0]
[1610300635828,4.00959,1267.3,1267.2,10.0]
[1610300636028,36.44169,1267.3,1267.1,10.0]
[1610300636227,36.44169,1267.3,1267.2,10.0]
[1610300636627,36.44169,1267.3,1267.1,10.0]
[1610300637029,36.44169,1267.3,1265.9,1.8654]
[1610300637030,26.44169,1267.3,1267.2,10.0]
[1610300637235,26.44169,1267.3,1266.0,10.0]
[1610300637435,45.7992272,1267.3,1266.0,10.0]
[1610300637628,45.7992272,1267.3,1267.2,10.0]
[1610300637843,32.38769238,1267.3,1267.2,9.9101]
[1610300638037,32.38769238,1267.3,1267.1,10.0]
[1610300638038,50.60567594,1267.3,1267.1,10.0]
[1610300638432,32.38769238,1267.3,1264.7,10.0]
[1610300638634,32.38769238,1267.3,1264.6,2.496]
[1610300638635,9.51040021,1264.8,1264.6,2.496]
[1610300638828,33.51999021,1264.8,1264.6,2.496]
[1610300639028,9.4970051,1264.7,1262.2,0.2427157]
[1610300639232,33.5065951,1264.7,1262.2,0.2427157]
[1610300639428,33.5065951,1264.7,1262.1,0.4854314]
[1610300639429,9.4871761,1264.6,1262.5,10.0]
[1610300639834,24.00959,1264.7,1263.7,4.00959]
[1610300639835,4.00959,1264.1,1263.7,4.00959]
[1610300640431,9.47769563,1264.5,1263.7,4.00959]
[1610300640634,9.46981675,1264.6,1263.7,4.00959]
[1610300640833,9.46981675,1264.6,1263.7,6.13639]
[1610300641036,9.47238219,1264.7,1263.8,10.0]
[1610300641436,9.47238219,1264.7,1263.9,10.0]
[1610300641838,9.47238219,1264.7,1264.6,4.00959]
[1610300642041,9.48442876,1264.9,1264.6,4.00959]
[1610300642244,9.48442876,1264.9,1264.6,14.00959]
[1610300642434,9.48971723,1265.1,1264.6,6.18309]
[1610300642635,9.49571366,1265.3,1264.7,10.0]
[1610300642833,9.49571366,1265.3,1264.8,10.0]
[1610300643037,9.49657199,1265.4,1264.8,10.0]
[1610300643236,9.48968258,1265.3,1264.6,6.18309]
[1610300643437,9.48968258,1265.3,1264.9,10.0]
[1610300643638,9.48869648,1265.4,1264.9,10.0]
[1610300643838,9.48869648,1265.4,1265.1,4.00959]
[1610300644438,14.65716277,1266.2,1265.1,4.00959]
[1610300644439,9.48517252,1265.6,1265.2,10.0]
[1610300644639,11.21401543,1266.1,1265.2,11.8852]
[1610300644838,11.21401543,1266.1,1265.2,1.8852]
[1610300645038,11.21675679,1266.4,1265.3,10.0]
[1610300645438,11.22456054,1266.7,1265.4,10.0]
[1610300645740,11.23128593,1266.9,1266.6,4.00959]
[1610300645938,11.22316381,1267.1,1266.6,4.00959]
[1610300646139,11.22316381,1267.1,1266.6,5.72429]
[1610300646539,11.22036932,1267.3,1266.7,10.0]
[1610300646938,11.22421584,1267.5,1266.8,10.0]
[1610300647138,16.95994438,1267.7,1266.8,10.0]
[1610300647139,11.2186873,1267.4,1266.8,10.0]
[1610300647337,11.2186873,1267.4,1266.7,10.0]
[1610300647538,11.22314518,1267.5,1266.7,10.0]
[1610300647738,11.22314518,1267.5,1267.4,4.00959]
[1610300648141,11.2239474,1267.6,1267.4,5.73109]
[1610300648543,15.21343723,1267.7,1267.4,15.73109]
[1610300648741,15.21343723,1267.7,1267.5,10.0]
[1610300649141,15.21343723,1267.7,1267.6,10.0]
[1610300649742,15.21343723,1267.7,1267.6,14.00959]
[1610300649943,15.21343723,1267.7,1267.6,10.0]
[1610300650542,4.00959,1267.7,1267.6,10.0]
[1610300650744,15.18654389,1267.7,1267.6,10.0]
[1610300651441,4.00959,1267.7,1267.6,10.0]
[1610300651642,12.88748173,1267.9,1267.6,10.0]
[1610300651842,11.17405245,1267.7,1267.6,10.0]
[1610300652041,11.17405245,1267.7,1267.3,1.6126]
[1610300652242,11.18312934,1267.9,1267.3,1.6126]
[1610300652442,11.19172714,1268.0,1267.4,10.0]
[1610300652842,11.19144851,1267.9,1267.5,10.0]
[1610300653242,11.19144851,1267.9,1267.4,10.0]
[1610300653642,11.19144851,1267.9,1267.5,10.0]
[1610300653844,11.19144851,1267.9,1267.8,4.00959]
[1610300654044,11.21605514,1268.0,1267.8,4.00959]
[1610300654444,11.21605514,1268.0,1267.9,10.0]
[1610300654645,11.22442106,1268.1,1267.9,12.0997]
[1610300654847,11.23947196,1268.3,1268.0,10.0]
[1610300655247,9.52006284,1268.1,1267.9,2.0997]
[1610300655446,11.25019693,1268.4,1267.9,2.0997]
[1610300655447,9.52198256,1268.2,1267.9,2.0997]
[1610300655646,9.52198256,1268.2,1268.1,10.0]
[1610300655847,15.24339271,1268.3,1268.0,4.00959]
[1610300656048,15.24339271,1268.3,1267.9,2.0997]
[1610300656250,15.24339271,1268.3,1268.1,10.0]
[1610300656251,11.22743003,1268.2,1268.1,10.0]
[1610300656450,4.00959,1268.3,1268.1,10.0]
[1610300656451,16.95094195,1268.3,1268.1,10.0]
[1610300656648,30.0,1268.2,1268.1,10.0]
[1610300656848,30.0,1268.2,1265.4,116.6684]
[1610300656849,42.93446694,1268.2,1265.4,116.6684]
[1610300657049,30.0,1268.2,1265.4,116.6684]
[1610300657248,30.0,1268.2,1268.1,10.0]
[1610300657448,44.64139224,1268.2,1266.7,1.7189]
[1610300657848,14.64139224,1268.2,1268.1,10.0]
[1610300658049,30.0,1268.2,1267.5,10.0]
[1610300658249,30.0,1268.2,1266.7,1.7189]
[1610300658549,32.54327087,1268.2,1267.6,10.0]
[1610300658751,14.62343798,1267.9,1266.0,1.6155]
[1610300658951,11.15950432,1267.3,1266.0,1.6155]
[1610300659150,13.33860432,1267.3,1266.0,1.6155]
[1610300659351,2.1791,1267.3,1267.2,56.1368]
[1610300659950,6.18869,1267.3,1267.2,56.1368]
[1610300660150,2.1791,1267.3,1267.2,56.1368]
[1610300660451,13.32424914,1267.3,1267.2,56.1368]
[1610300660751,2.1791,1267.3,1267.2,56.1368]
[1610300661151,11.14996629,1267.4,1267.2,56.1368]
[1610300661352,2.0617,1267.6,1267.2,56.1368]
[1610300661353,11.1387889,1267.3,1267.2,56.1368]
[1610300661554,14.91348989,1267.6,1267.3,10.0]
[1610300661752,11.13598969,1267.4,1267.3,10.0]
[1610300661953,11.13598969,1267.4,1267.3,4.00959]
[1610300662154,11.14222119,1267.5,1267.3,4.00959]
[1610300662353,12.85575002,1267.7,1267.3,4.00959]
[1610300662354,9.43447904,1267.4,1267.3,4.00959]
[1610300662553,9.43447904,1267.4,1267.3,14.00959]
[1610300662753,11.14905951,1267.7,1267.3,4.00959]
[1610300662754,9.45444136,1267.7,1267.3,4.00959]
[1610300662953,9.45444136,1267.7,1267.3,14.00959]
[1610300663153,9.46592382,1268.0,1267.4,10.0]
[1610300663353,9.46592382,1268.0,1267.3,4.00959]
[1610300663553,9.46797208,1268.2,1267.3,4.00959]
[1610300663753,9.46797208,1268.2,1267.5,10.0]
[1610300663953,9.46625567,1268.1,1267.5,11.6473]
[1610300664154,9.46625567,1268.1,1267.5,1.6473]
[1610300664353,9.46625567,1268.1,1267.6,10.0]
[1610300664553,9.45615814,1267.8,1267.6,10.0]
[1610300664753,9.45615814,1267.8,1267.7,10.0]
[1610300665155,9.46467383,1267.9,1267.7,10.0]
[1610300665555,9.47889871,1268.0,1267.7,10.0]
[1610300665755,9.4820344,1267.9,1267.8,10.0]
[1610300665954,9.4820344,1267.9,1267.8,14.00959]
[1610300666156,9.4820344,1267.9,1267.8,4.00959]
[1610300666354,9.4820344,1267.9,1267.8,10.0]
[1610300666555,11.20550428,1268.1,1267.8,10.0]
[1610300666856,11.20716354,1268.0,1267.9,10.0]
[1610300667256,2.0918,1268.1,1267.3,10.0]
[1610300667555,7.736189,1267.7,1267.4,10.0]
[1610300667856,4.00959,1267.5,1267.3,14.00959]
[1610300668056,7.72463237,1267.6,1267.3,10.0]
[1610300668257,7.72091343,1267.5,1267.4,10.0]
[1610300668456,9.43469326,1267.5,1267.4,10.0]
[1610300668657,39.43469326,1267.5,1266.9,63.3766]
[1610300668858,30.0,1267.5,1266.9,63.3766]
[1610300669056,30.0,1267.5,1267.0,10.0]
[1610300669257,9.42858297,1267.1,1267.0,10.0]
[1610300669459,43.39510556,1267.1,1267.0,10.0]
[1610300669859,36.26249,1267.1,1266.9,58.2834]
[1610300670057,36.26249,1267.1,1264.2,4.00959]
[1610300670258,14.51980766,1267.0,1264.2,4.00959]
[1610300670458,30.0,1266.9,1263.4,0.24229203]
[1610300670857,30.0,1266.9,1264.9,10.0]
[1610300670858,5.97191951,1265.4,1264.9,10.0]
[1610300671058,5.96794563,1265.1,1264.9,10.0]
[1610300671257,30.0,1265.0,1262.8,0.24242707]
[1610300671457,30.0,1265.0,1263.5,1.21081809]
[1610300671458,37.66627366,1265.0,1263.5,1.21081809]
[1610300671657,39.58427366,1265.0,1263.6,10.0]
[1610300671859,4.00959,1263.7,1263.6,10.0]
[1610300672059,4.00959,1263.7,1263.5,5.22040809]
[1610300672458,4.00959,1263.7,1263.6,10.0]
[1610300673458,2.2426,1263.9,1263.6,10.0]
[1610300674058,2.2426,1263.9,1263.7,10.0]
[1610300674359,2.2426,1263.9,1263.6,10.0]
[1610300674662,2.2426,1263.9,1263.7,10.0]
[1610300675060,2.2426,1263.9,1263.6,10.0]
[1610300675463,2.2426,1263.9,1263.7,10.0]
[1610300675863,2.2426,1263.9,1263.6,10.0]
[1610300676064,2.2426,1263.9,1263.8,4.00959]
[1610300676265,5.96765749,1264.2,1263.8,14.00959]
[1610300676464,4.26441123,1264.1,1263.9,10.0]
[1610300676866,4.26379845,1264.3,1263.9,10.0]
[1610300677064,4.26460109,1264.5,1264.0,10.0]
[1610300677464,4.26670121,1264.7,1263.8,5.57829]
[1610300677864,4.26670121,1264.7,1264.0,10.0]
[1610300678066,4.26925481,1264.8,1264.6,4.00959]
[1610300678264,4.26925481,1264.8,1264.6,6.10689]
[1610300678465,4.27157785,1265.0,1264.6,6.10689]
[1610300678668,4.27157785,1265.0,1264.7,10.0]
[1610300678869,4.27155341,1265.1,1264.7,10.0]
[1610300679068,4.27155341,1265.1,1264.8,10.0]
[1610300679269,4.27445832,1265.3,1264.8,10.0]
[1610300679469,4.27869744,1265.5,1264.7,10.0]
[1610300679669,4.27869744,1265.5,1264.6,6.10689]
[1610300679871,4.28118632,1265.8,1264.8,10.0]
[1610300680270,4.27864942,1265.7,1265.5,2.2054]
[1610300680470,7.6939579,1265.8,1265.5,2.2054]
[1610300680669,7.6939579,1265.8,1265.6,10.0]
[1610300680872,7.69631692,1265.7,1265.6,10.0]
[1610300681070,9.41428141,1265.7,1264.6,2.0973]
[1610300681270,9.43422645,1265.8,1265.6,10.0]
[1610300681670,7.72383095,1265.8,1265.3,2.1901]
[1610300681871,6.01652723,1265.7,1265.3,2.1901]
[1610300682072,6.01652723,1265.7,1265.6,4.00959]
[1610300682272,4.30363771,1265.7,1265.6,4.00959]
[1610300682673,4.30797579,1265.8,1265.6,14.00959]
[1610300682874,4.30797579,1265.8,1265.7,10.0]
[1610300683274,4.31322275,1265.9,1265.7,10.0]
[1610300683675,4.31576064,1266.0,1265.8,10.0]
[1610300683974,4.31576064,1266.0,1265.9,4.00959]
[1610300684175,4.31576064,1266.0,1265.9,5.78349]
[1610300684375,6.04034032,1266.1,1265.9,15.78349]
[1610300684674,6.04034032,1266.1,1266.0,10.0]
[1610300684875,7.76492,1266.2,1266.0,10.0]
[1610300685276,6.05550891,1266.2,1266.1,10.0]
[1610300685677,4.33821908,1266.6,1266.0,10.0]
[1610300686080,4.34748975,1267.0,1266.5,4.00959]
[1610300686276,4.35773087,1267.3,1266.5,5.87669]
[1610300686676,3.05614507,1267.4,1266.5,5.87669]
[1610300686877,3.05614507,1267.4,1266.6,10.0]
[1610300687277,3.06127228,1267.6,1266.7,10.0]
[1610300687479,3.063979,1267.7,1266.7,10.0]
[1610300687678,3.063979,1267.7,1266.8,10.0]
[1610300687877,3.06563242,1267.8,1266.8,11.7066]
[1610300688079,3.06563242,1267.8,1267.7,4.00959]
[1610300688478,3.06443455,1268.1,1267.7,4.00959]
[1610300688678,3.06443455,1268.1,1267.7,14.00959]
[1610300689078,3.06443455,1268.1,1267.8,10.0]
[1610300689278,3.06443455,1268.1,1267.8,12.0807]
[1610300689482,3.06443455,1268.1,1267.9,10.0]
[1610300689878,3.06443455,1268.1,1268.0,10.0]
[1610300690077,3.06443455,1268.1,1268.0,14.00959]
[1610300690280,3.07307197,1268.3,1268.0,4.00959]
[1610300690479,3.07307197,1268.3,1268.0,14.00959]
[1610300690880,3.07307197,1268.3,1268.1,10.0]
[1610300691279,3.07307197,1268.3,1268.0,4.00959]
[1610300691280,3.07115611,1268.2,1268.0,4.00959]
[1610300691579,3.07115611,1268.2,1268.1,10.0]
[1610300691978,3.07115611,1268.2,1268.1,11.7415]
[1610300692783,3.06246621,1268.3,1268.1,11.7415]
[1610300693279,3.06246621,1268.3,1268.2,10.0]
[1610300693485,4.36822367,1268.3,1268.2,10.0]
[1610300693780,3.05851465,1268.3,1268.2,10.0]
[1610300693982,3.05851465,1268.3,1268.2,14.00959]
[1610300694180,4.36616193,1268.3,1268.2,14.00959]
[1610300694880,3.05578717,1268.3,1268.2,14.00959]
[1610300695282,4.36354202,1268.4,1268.2,14.00959]
[1610300695482,4.36354202,1268.4,1268.3,10.0]
[1610300696584,3.06564108,1268.4,1268.3,10.0]
[1610300697083,3.06502555,1268.6,1268.3,10.0]
[1610300697384,3.06502555,1268.6,1268.4,10.0]
[1610300697687,3.06502555,1268.6,1268.2,4.00959]
[1610300697887,4.37571011,1268.6,1268.3,10.0]
[1610300698086,6.12424561,1268.7,1268.4,4.00959]
[1610300698087,7.86444622,1268.5,1268.4,4.00959]
[1610300698487,2.3601,1268.5,1268.4,4.00959]
[1610300698688,2.3601,1268.5,1268.4,10.0]
[1610300698889,15.4121231,1268.5,1268.4,10.0]
[1610300699292,2.3601,1268.5,1268.4,10.0]
[1610300700089,2.3601,1268.5,1268.4,14.00959]
[1610300701291,11.93970378,1268.5,1268.4,14.00959]
[1610300702095,10.20595502,1268.5,1268.4,14.00959]
[1610300702392,8.46946613,1268.5,1268.4,14.00959]
[1610300702592,6.10936613,1268.5,1268.4,14.00959]
[1610300702792,6.11733798,1268.6,1268.4,14.00959]
[1610300702993,6.11733798,1268.6,1268.4,15.70259]
[1610300703192,7.87213487,1268.8,1268.4,5.70259]
[1610300703394,6.12311996,1268.5,1268.4,5.70259]
[1610300703796,11.49669206,1268.5,1268.4,5.70259]
[1610300703995,11.49669206,1268.5,1268.4,15.70259]
[1610300704194,1.888,1268.5,1268.4,15.70259]
[1610300705096,9.7750296,1268.5,1268.4,15.70259]
[1610300706195,9.7750296,1268.5,1268.4,10.0]
[1610300706397,1.888,1268.5,1268.4,10.0]
[1610300706597,1.888,1268.5,1268.4,14.00959]
[1610300706796,13.27047596,1268.5,1268.4,14.00959]
[1610300706997,13.27047596,1268.5,1268.4,10.0]
[1610300707497,1.888,1268.5,1268.4,10.0]
[1610300707797,18.50155403,1268.5,1268.4,1.8335]
[1610300708098,1.888,1268.5,1268.4,1.8335]
[1610300708297,4.93559337,1268.5,1265.5,3.405]
[1610300708697,4.93559337,1268.5,1267.4,10.0]
[1610300708896,4.93559337,1268.5,1267.5,10.0]
[1610300709099,13.11428625,1267.6,1267.5,10.0]
[1610300709299,15.45168625,1267.6,1267.5,10.0]
[1610300709498,15.45168625,1267.6,1266.5,61.4749]
[1610300709499,2.3374,1267.6,1267.4,10.0]
[1610300709700,17.19324846,1267.6,1267.4,10.0]
[1610300709900,17.19324846,1267.6,1266.6,10.0]
[1610300710100,14.85126244,1267.5,1266.5,61.4749]
[1610300710301,14.85126244,1267.5,1266.7,10.0]
[1610300710502,11.35656638,1266.8,1266.6,10.0]
[1610300710702,13.14916638,1266.8,1266.7,4.00959]
[1610300711102,9.66732253,1266.8,1266.7,14.00959]
[1610300711301,9.66732253,1266.8,1266.7,10.0]
[1610300711803,3.3894,1266.8,1266.7,10.0]
[1610300712103,1.7926,1266.8,1266.7,10.0]
[1610300712504,14.89600813,1266.8,1266.7,10.0]
[1610300712703,18.90559813,1266.8,1266.7,10.0]
[1610300712903,5.80219,1266.8,1266.7,10.0]
[1610300713106,20.62698366,1266.8,1266.7,10.0]
[1610300713505,5.80219,1266.8,1266.7,10.0]
[1610300713905,8.84984504,1266.8,1266.7,10.0]
[1610300714105,9.57738108,1266.8,1266.7,10.0]
[1610300714608,26.11338071,1266.8,1266.7,10.0]
[1610300715008,24.35651125,1266.8,1266.7,10.0]
[1610300715205,9.57738108,1266.8,1266.7,10.0]
[1610300716010,24.37648486,1266.8,1266.7,10.0]
[1610300716407,9.57738108,1266.8,1266.7,10.0]
[1610300716708,10.79017517,1266.8,1266.7,10.0]
[1610300717109,9.57738108,1266.8,1266.7,10.0]
[1610300717710,9.57738108,1266.8,1265.8,53.7503]
[1610300717910,13.03636455,1265.9,1265.8,53.7503]
[1610300718110,14.86436455,1265.9,1265.8,53.7503]
[1610300718313,14.86436455,1265.9,1265.8,63.7503]
[1610300718612,2.55580803,1265.9,1265.8,63.7503]
[1610300718812,6.56539803,1265.9,1265.8,63.7503]
[1610300719012,13.87265389,1265.9,1265.8,63.7503]
[1610300719413,1.828,1265.9,1265.8,63.7503]
[1610300719813,12.1346723,1265.9,1265.8,63.7503]
[1610300720013,2.55560477,1265.9,1265.8,63.7503]
[1610300720416,13.8535612,1265.9,1265.8,63.7503]
[1610300720816,17.8631512,1265.9,1265.8,63.7503]
[1610300721014,17.8631512,1265.9,1265.8,10.0]
[1610300722416,6.56519477,1265.9,1265.8,10.0]
[1610300722615,2.55560477,1265.9,1265.8,10.0]
[1610300723017,8.56715909,1265.9,1265.8,10.0]
[1610300723319,7.83978441,1266.0,1265.8,10.0]
[1610300723617,6.09818273,1265.9,1265.4,1.5723]
[1610300724018,1.74092443,1265.5,1265.4,1.5723]
[1610300724319,4.35530984,1265.6,1265.4,10.0]
[1610300724719,6.10358947,1265.6,1265.5,10.0]
[1610300725120,6.10358947,1265.6,1265.1,10.0]
[1610300725121,7.84636853,1265.6,1265.1,10.0]
[1610300725321,9.5847073,1265.6,1265.1,10.0]
[1610300725520,11.1137073,1265.6,1265.5,10.0]
[1610300725721,2.25664788,1265.6,1265.5,10.0]
[1610300725923,2.25664788,1265.6,1264.5,10.0]
[1610300726321,2.25664788,1265.6,1264.6,10.0]
[1610300726521,1.04630343,1264.7,1264.4,1.7391]
[1610300726721,1.04630343,1264.7,1264.6,4.00959]
[1610300727021,1.04630343,1264.7,1264.6,14.00959]
[1610300727221,1.39507124,1264.8,1264.6,10.0]
[1610300727422,2.47059067,1264.7,1264.6,10.0]
[1610300727621,2.47059067,1264.7,1264.4,1.7391]
[1610300727823,1.74278922,1264.7,1264.4,1.7391]
[1610300728023,1.74278922,1264.7,1264.3,56.0908]
[1610300728224,3.04874262,1264.5,1264.3,56.0908]
[1610300728426,3.04750195,1264.4,1264.3,56.0908]
[1610300728724,7.05709195,1264.4,1264.3,66.0908]
[1610300728925,3.04750195,1264.4,1264.3,66.0908]
[1610300729624,1.39338929,1264.4,1264.3,66.0908]
[1610300729826,1.39775265,1264.6,1264.3,66.0908]
[1610300730224,1.39622697,1264.5,1264.4,10.0]
[1610300730624,4.3593034,1264.6,1264.4,10.0]
[1610300730825,4.36249828,1264.6,1264.5,14.00959]
[1610300731133,4.36249828,1264.6,1264.5,4.00959]
[1610300731526,4.36249828,1264.6,1264.5,14.00959]
[1610300731728,3.05977152,1264.6,1264.5,14.00959]
[1610300732528,1.7511843,1264.6,1264.5,14.00959]
[1610300733429,1.40341376,1264.7,1264.5,10.0]
[1610300733630,1.40341376,1264.7,1264.5,11.567]
[1610300733832,1.40526771,1265.0,1264.6,10.0]
[1610300734034,1.40636521,1265.2,1264.6,10.0]
[1610300734230,1.40636521,1265.2,1264.7,10.0]
[1610300734430,6.15724268,1265.7,1264.7,10.0]
[1610300734431,3.08599756,1265.8,1264.7,10.0]
[1610300734630,4.40668126,1265.9,1264.6,10.0]
[1610300734831,4.41463517,1266.3,1265.8,4.00959]
[1610300735033,4.41463517,1266.3,1265.8,5.92199]
[1610300735232,4.42127671,1266.6,1265.8,5.92199]
[1610300735432,4.42127671,1266.6,1265.9,10.0]
[1610300735633,4.42961307,1266.8,1265.9,10.0]
[1610300735833,4.42961307,1266.8,1266.0,10.0]
[1610300736235,4.42961307,1266.8,1265.8,5.92199]
[1610300736236,4.43319637,1266.9,1265.9,10.0]
[1610300736434,4.43317155,1267.0,1266.1,10.0]
[1610300736834,4.4237084,1266.5,1266.1,4.00959]
[1610300737034,4.4237084,1266.5,1265.9,10.0]
[1610300737237,4.41984679,1266.3,1266.2,10.0]
[1610300737436,6.18381221,1266.3,1266.2,10.0]
[1610300737634,8.00551221,1266.3,1265.9,10.0]
[1610300737834,1.8217,1266.3,1265.9,10.0]
[1610300738033,1.8217,1266.3,1264.6,10.0]
[1610300738234,6.25206567,1266.3,1264.6,10.0]
[1610300738434,6.25206567,1266.3,1264.5,1.567]
[1610300738635,6.25206567,1266.3,1264.7,10.0]
[1610300738838,4.43542278,1266.2,1264.7,2.5024]
[1610300739236,6.25877121,1266.3,1264.8,10.0]
[1610300739435,6.25877121,1266.3,1264.9,10.0]
[1610300740035,6.25877121,1266.3,1264.7,2.5024]
[1610300740437,4.4351746,1266.1,1264.8,10.0]
[1610300740838,4.43337836,1266.0,1264.9,10.0]